[Event "TUR-chT Superleague 2018"]
[Site "Ankara"]
[Date "2018.07.29"]
[Round "6"]
[White "Ozturk, Kubra"]
[Black "Unuk, Laura"]
[Result "1-0"]
[ECO "D37"]
[WhiteElo "2330"]
[BlackElo "2355"]
[Annotator "NA"]
[PlyCount "101"]
[EventDate "2018.07.25"]
[EventType "team-tourn"]
[EventCountry "TUR"]
[SourceTitle "playchess.com"]
[Source "ChessBase"]
[SourceQuality "1"]
[TimeControl "40/5400+30:1800+30"]

1. d4 Nf6 2. c4 e6 3. Nf3 d5 4. Nc3 Be7 5. Bf4 O-O 6. e3 c6 7. Bd3 Nbd7 8. c5 Nh5 9. b4 Re8 10. O-O Nf8 11. Ne5 Nxf4 12. exf4 f6 13. Nf3 b6 14. Re1 bxc5 15. bxc5 Qa5 16. Qd2 Ba6 17. Bc2 Qc7 18. g3 Bd8 19. Re3 Qd7 20. Ne2 Bc7 21. Nc1 Ng6 22. Bxg6 hxg6 23. Nb3 Kf7 24. Rae1 Rh8 25. Qc2 Rh6 26. Rxe6 Qxe6 27. Ng5+ fxg5 28. Rxe6 Kxe6 29. fxg5 Kf7 30. gxh6 gxh6 31. h4 Re8 32. h5 Re1+ 33. Kg2 Bf1+ 34. Kh2 Re6 35. hxg6+ Kf6 36. Nc1 Bb5 37. Kg2 Re4 38. f3 Re7 39. g4 Kg7 40. Qf5 Ba5 {[%emt 1:49:30]} 41. Nd3 {[%emt 1:55:30]} Bd2 {[%emt 0:03:30]} 42. Nf4 {[%emt 0:03:30]} Bxf4 {[%emt 0:00:30]} 43. Qxf4 {[%emt 0:00:30]} Re2+ {[%emt 0:00:00]} 44. Kg3 {[%emt 0:00:30]} Kxg6 {[%emt 0:00:00]} 45. Qf5+ {[%emt 0:01:30]} Kg7 {[%emt 0:00:30]} 46. Qd7+ {[%emt 0:00:00]} Kg6 {[%emt 0:00:30]} 47. f4 {[%emt 0:02:00]} Re3+ {[%emt 0:03:30]} 48. Kh4 {[%emt 0:00:30]} Bf1 {[%emt 0:00:30]} 49. f5+ {[%emt 0:00:30]} Kf6 {[%emt 0:00:30]} 50. Qxc6+ {[%emt 0:00:45]} Ke7 {[%emt 0:00:00]} 51. Kh5 {[%emt 0:03:55]} 1-0

[Event "TUR-chT Superleague 2018"]
[Site "Ankara"]
[Date "2018.07.29"]
[Round "6"]
[White "Sari, Yasin"]
[Black "Kilic, Efe Mert"]
[Result "1/2-1/2"]
[ECO "B07"]
[WhiteElo "2330"]
[BlackElo "2317"]
[Annotator "NA"]
[PlyCount "97"]
[EventDate "2018.07.25"]
[EventType "team-tourn"]
[EventCountry "TUR"]
[SourceTitle "playchess.com"]
[Source "ChessBase"]
[SourceQuality "1"]
[TimeControl "40/5400+30:1800+30"]

1. Nf3 g6 2. e4 Bg7 3. d4 d6 4. Bd3 Nf6 5. O-O O-O 6. c3 Nc6 7. Be3 e5 8. Nbd2 b6 9. Re1 exd4 10. cxd4 Nb4 11. Bf1 c5 12. a3 Nc6 13. d5 Ne7 14. h3 a6 15. b4 h6 16. bxc5 bxc5 17. Rb1 g5 18. Qb3 Ng6 19. e5 dxe5 20. Bxc5 Re8 21. Bc4 Bf5 22. d6 Qd7 23. Rbd1 Rab8 24. Qa2 Rbc8 25. Be3 Be6 26. Bxe6 Qxe6 27. Qxe6 Rxe6 28. Rc1 Rxc1 29. Rxc1 Rxd6 30. Rc8+ Kh7 31. Nc4 Rd1+ 32. Kh2 Nd5 33. Ra8 e4 34. Nfd2 Nxe3 35. fxe3 Ne5 36. Rxa6 f5 37. Re6 Nxc4 38. Nxc4 Rc1 {[%emt 1:20:30]} 39. Nb6 {[%emt 1:22:30]} Rc3 {[%emt 0:00:30]} 40. a4 {[%emt 0:00:30]} Rxe3 {[%emt 0:30:30]} 41. Nd5 {[%emt 0:30:30]} Re1 {[%emt 0:04:30]} 42. Ne7 {[%emt 0:06:30]} Rf1 {[%emt 0:04:30]} 43. g4 {[%emt 0:02:56]} fxg4 {[%emt 0:01:30]} 44. hxg4 {[%emt 0:02:25]} Rf2+ {[%emt 0:07:06]} 45. Kh3 {[%emt 0:02:09]} Rf3+ {[%emt 0:00:18]} 46. Kg2 {[%emt 0:00:38]} Rf4 {[%emt 0:01:49]} 47. Kh3 {[%emt 0:00:28]} Rf3+ {[%emt 0:03:20]} 48. Kg2 {[%emt 0:00:43]} Rf4 {[%emt 0:00:19]} 49. Kh3 {[%emt 0:00:00]} 1/2-1/2

[Event "TUR-chT Superleague 2018"]
[Site "Ankara"]
[Date "2018.07.29"]
[Round "6"]
[White "Yildiz Kadioglu, Betul Cemre"]
[Black "Savina, Anastasia"]
[Result "1-0"]
[ECO "C50"]
[WhiteElo "2323"]
[BlackElo "2342"]
[Annotator "NA"]
[PlyCount "115"]
[EventDate "2018.07.25"]
[EventType "team-tourn"]
[EventCountry "TUR"]
[SourceTitle "playchess.com"]
[Source "ChessBase"]
[SourceQuality "1"]
[TimeControl "40/5400+30:1800+30"]

1. e4 e5 2. Nf3 Nc6 3. Bc4 Bc5 4. d3 Nf6 5. Nc3 a6 6. Nd5 h6 7. c3 d6 8. b4 Ba7 9. Be3 Nxd5 10. Bxd5 Ne7 11. Bb3 O-O 12. Qd2 Bxe3 13. fxe3 a5 14. b5 a4 15. Bc2 c6 16. bxc6 bxc6 17. O-O Be6 18. Rfb1 Qc7 19. d4 c5 20. d5 Bd7 21. Nxe5 dxe5 22. d6 Qc6 23. dxe7 Rfe8 24. Qd5 Ra7 25. Qxe5 Be6 26. Bd3 Rexe7 27. Rb8+ Kh7 28. Qf4 Rab7 29. e5+ g6 30. Rf8 Rb2 31. Be4 Bd5 32. Rf1 Qe6 33. Rd1 Bxe4 34. Qxe4 Qf5 35. Qd5 Rb1 36. Rxb1 Qxb1+ 37. Kf2 {[%emt 1:21:30]} Qf5+ {[%emt 1:19:00]} 38. Qf3 {[%emt 0:00:30]} Rb7 {[%emt 0:00:30]} 39. Qxf5 {[%emt 0:00:30]} gxf5 {[%emt 0:00:30]} 40. Kf3 {[%emt 0:00:30]} Kg6 {[%emt 0:30:30]} 41. Rg8+ {[%emt 0:30:30]} Kh7 {[%emt 0:00:30]} 42. Ra8 {[%emt 0:00:30]} Rb2 {[%emt 0:00:30]} 43. Rxa4 {[%emt 0:00:30]} Rc2 {[%emt 0:00:30]} 44. Rc4 {[%emt 0:00:30]} Rxa2 {[%emt 0:00:30]} 45. Rxc5 {[%emt 0:00:00]} Rc2 {[%emt 0:02:30]} 46. Rc8 {[%emt 0:00:00]} Kg6 {[%emt 0:02:30]} 47. c4 {[%emt 0:00:30]} h5 {[%emt 0:00:30]} 48. c5 {[%emt 0:02:30]} h4 {[%emt 0:07:08]} 49. h3 {[%emt 0:05:30]} Kg7 {[%emt 0:05:35]} 50. c6 {[%emt 0:01:30]} Rc4 {[%emt 0:00:17]} 51. g3 {[%emt 0:01:32]} hxg3 {[%emt 0:01:16]} 52. Kxg3 {[%emt 0:01:40]} Re4 {[%emt 0:00:17]} 53. c7 {[%emt 0:01:29]} Rxe3+ {[%emt 0:02:50]} 54. Kf4 {[%emt 0:00:30]} Rc3 {[%emt 0:00:00]} 55. Kxf5 {[%emt 0:00:00]} Rc5 {[%emt 0:01:59]} 56. Ke4 {[%emt 0:00:15]} Rc1 {[%emt 0:00:35]} 57. h4 {[%emt 0:01:10]} Re1+ {[%emt 0:02:42]} 58. Kd5 {[%emt 0:01:02]} 1-0

[Event "TUR-chT Superleague 2018"]
[Site "Ankara"]
[Date "2018.07.29"]
[Round "6"]
[White "Demircioglu, Emre"]
[Black "Tuncer, Tuna"]
[Result "0-1"]
[ECO "D91"]
[WhiteElo "2244"]
[BlackElo "2328"]
[Annotator "NA"]
[PlyCount "80"]
[EventDate "2018.07.25"]
[EventType "team-tourn"]
[EventCountry "TUR"]
[SourceTitle "playchess.com"]
[Source "ChessBase"]
[SourceQuality "1"]
[TimeControl "40/5400+30:1800+30"]

1. d4 Nf6 2. c4 g6 3. Nc3 d5 4. Bg5 Bg7 5. Nf3 Ne4 6. Bh4 Nxc3 7. bxc3 dxc4 8. e3 b5 9. Be2 O-O 10. O-O c6 11. Qc2 a6 12. Ne5 f6 13. Nf3 Qe8 14. Nd2 Bf5 15. e4 Bc8 16. a4 e5 17. d5 Bb7 18. axb5 axb5 19. Rxa8 Bxa8 20. Qa2 Nd7 21. dxc6 Nc5 22. c7 Qc6 23. Qa5 Na6 24. Rb1 Nxc7 25. f3 Bh6 26. Nf1 Bb7 27. Bf2 Rc8 28. Qb4 Ba6 29. Rd1 Bf8 30. Qb2 Bc5 31. Ne3 Ne6 32. Bf1 Rd8 33. Nd5 Kf7 34. Bxc5 Qxc5+ 35. Kh1 Bb7 36. Qd2 Nf4 37. Qe1 {[%emt 1:22:30]} Bxd5 {[%emt 1:19:00]} 38. Qh4 {[%emt 0:00:30]} Kg7 {[%emt 0:00:30]} 39. exd5 {[%emt 0:00:30]} Rxd5 {[%emt 0:00:30]} 40. Ra1 {[%emt 0:00:30]} Rd7 {[%emt 0:30:30]} 0-1

[Event "TUR-chT Superleague 2018"]
[Site "Ankara"]
[Date "2018.07.29"]
[Round "6"]
[White "Isik, Alparslan"]
[Black "Tarlabasi, Emirhan"]
[Result "1-0"]
[ECO "D37"]
[WhiteElo "2212"]
[BlackElo "2117"]
[Annotator "NA"]
[PlyCount "129"]
[EventDate "2018.07.25"]
[EventType "team-tourn"]
[EventCountry "TUR"]
[SourceTitle "playchess.com"]
[Source "ChessBase"]
[SourceQuality "1"]
[TimeControl "40/5400+30:1800+30"]

1. d4 d5 2. c4 e6 3. Nc3 Be7 4. Nf3 Nf6 5. Bf4 O-O 6. e3 a6 7. cxd5 exd5 8. Bd3 {D37: Queen's Gambit Declined: 5 Bf4} Be6 (8... Bg4 9. h3 Bxf3 10. Qxf3 c6 11. g4 Bd6 12. g5 Ne8 13. h4 Bxf4 14. Qxf4 Nd6 15. O-O-O f5 {½-½ (65) Moiseenko,A (2713)-Dubov,D (2629) Warsaw 2013}) 9. Qc2 c5 $146 ({Predecessor:} 9... Nbd7 10. O-O b5 11. Ne2 c5 12. dxc5 Nxc5 13. Ned4 Rc8 14. Rac1 {1-0 (33) Jaracz,P (2503)-Pedini,D (2251) Wroclaw 2014}) 10. dxc5 Nbd7 11. O-O Nxc5 12. Nd4 Rc8 13. Rfd1 b5 14. Qb1 b4 15. Nce2 Qb6 16. Nf5 Bxf5 17. Bxf5 Ne6 18. Be5 g6 19. Bc2 Ng4 20. Bg3 Rfd8 21. Bb3 Qb7 22. Rd2 Nf6 23. Qd1 Nc5 24. Nf4 Nxb3 25. Qxb3 g5 26. Ne2 Ne4 27. Rd4 Qb5 28. Re1 Bf6 29. Rdd1 Nc5 30. Qc2 Ne4 31. Qb1 b3 32. axb3 Qxb3 33. Nd4 Bxd4 34. Rxd4 Rc4 35. Qd1 Qxd1 36. Rexd1 Rxd4 37. Rxd4 Rc8 38. Kf1 Rc1+ 39. Ke2 Rc2+ 40. Kf3 Nxg3 41. Kxg3 {[%emt 1:50:30]} Rc5 {[%emt 1:57:00]} 42. Kg4 {[%emt 0:05:30]} h6 {[%emt 0:03:30]} 43. b4 {[%emt 0:11:53]} Rb5 {[%emt 0:00:30]} 44. Kh5 {[%emt 0:08:42]} Kg7 {[%emt 0:03:04]} 45. f4 {[%emt 0:02:01]} f6 {[%emt 0:07:47]} 46. f5 {[%emt 0:02:02]} a5 {[%emt 0:07:33]} 47. bxa5 {[%emt 0:00:30]} Rxa5 {[%emt 0:00:00]} 48. h3 {[%emt 0:00:00]} Rc5 {[%emt 0:02:00]} 49. g3 {[%emt 0:00:28]} Ra5 {[%emt 0:01:41]} 50. Rb4 $2 {[%emt 0:00:23]} (50. g4 Rb5 51. Ra4) 50... Ra7 {[%emt 0:00:21]} 51. Rb6 {[%emt 0:00:31]} Re7 {[%emt 0:01:01]} 52. g4 {[%emt 0:01:24]} Kf7 {[%emt 0:01:23]} 53. Rb3 {[%emt 0:01:34]} Kg7 {[%emt 0:00:22]} 54. Ra3 {[%emt 0:00:05]} Rd7 {[%emt 0:00:54]} 55. Rd3 {[%emt 0:00:05]} Rd8 {[%emt 0:00:23]} 56. Rd4 {[%emt 0:00:24]} Re8 {[%emt 0:00:26]} 57. Rxd5 {[%emt 0:00:12]} Re7 {[%emt 0:00:31] [#]} 58. e4 $1 {[%emt 0:00:21]} Kf7 {[%emt 0:00:32]} 59. Ra5 {[%emt 0:00:49]} Kg7 {[%emt 0:00:27]} 60. Ra6 {[%emt 0:00:12]} Kf7 {[%emt 0:00:34]} 61. Rb6 {[%emt 0:00:48]} Rxe4 {[%emt 0:00:28]} 62. Rb7+ {[%emt 0:00:04]} Ke8 {[%emt 0:00:18]} 63. Kg6 {[%emt 0:00:17]} Re3 {[%emt 0:00:48]} 64. Kxf6 {[%emt 0:00:09]} Rxh3 {[%emt 0:00:00]} 65. Kg7 {[%emt 0:00:29]} 1-0

[Event "TUR-chT Superleague 2018"]
[Site "Ankara"]
[Date "2018.07.29"]
[Round "6"]
[White "Ozbay, Ece"]
[Black "Onur, Cigdem"]
[Result "1-0"]
[ECO "B30"]
[WhiteElo "2140"]
[BlackElo "1750"]
[Annotator "NA"]
[PlyCount "109"]
[EventDate "2018.07.25"]
[EventType "team-tourn"]
[EventCountry "TUR"]
[SourceTitle "playchess.com"]
[Source "ChessBase"]
[SourceQuality "1"]
[TimeControl "40/5400+30:1800+30"]

1. e4 c5 2. Nf3 Nc6 3. Bb5 e6 4. O-O Nge7 5. Re1 Nd4 6. Nxd4 cxd4 7. c3 a6 8. Bf1 Nc6 9. b3 Bc5 10. b4 Ba7 11. a4 Qh4 12. Qf3 Ne5 13. Qg3 Qxg3 14. hxg3 d3 15. c4 Ng4 16. c5 a5 17. Ba3 b6 18. Rc1 axb4 19. Bxb4 Ba6 20. Na3 bxc5 21. Bxc5 Bxc5 22. Rxc5 Ke7 23. Nb5 Rhb8 24. Bxd3 Bxb5 25. Bxb5 Rc8 26. Rac1 Rxc5 27. Rxc5 Nf6 28. f3 Ra7 29. d4 d6 30. Rc8 h5 31. Kf2 Nd7 32. f4 g6 33. e5 dxe5 34. dxe5 f6 35. Rh8 Nf8 36. exf6+ Kf7 37. g4 hxg4 38. Kg3 Ra8 39. Kxg4 Kxf6 40. Bc6 Rc8 41. Bb7 Rb8 42. Rxf8+ Rxf8 43. a5 {[%emt 1:33:30]} g5 {[%emt 2:02:00]} 44. a6 {[%emt 0:00:30]} gxf4 {[%emt 0:00:30]} 45. a7 {[%emt 0:00:30]} e5 {[%emt 0:00:30]} 46. a8=Q {[%emt 0:00:30]} Rxa8 {[%emt 0:00:30]} 47. Bxa8 {[%emt 0:00:30]} Kg6 {[%emt 0:00:30]} 48. Be4+ {[%emt 0:00:30]} Kf6 {[%emt 0:00:30]} 49. Kh5 {[%emt 0:00:30]} Ke6 {[%emt 0:00:30]} 50. Kg6 {[%emt 0:00:30]} Ke7 {[%emt 0:00:30]} 51. Kf5 {[%emt 0:00:30]} Kd6 {[%emt 0:00:30]} 52. Kf6 {[%emt 0:00:30]} Kd7 {[%emt 0:00:30]} 53. Kxe5 {[%emt 0:00:30]} Ke7 {[%emt 0:00:30]} 54. Kxf4 {[%emt 0:00:30]} Kf6 {[%emt 0:00:30]} 55. g4 {[%emt 0:00:30]} 1-0

[Event "TUR-chT Superleague 2018"]
[Site "Ankara"]
[Date "2018.07.29"]
[Round "6"]
[White "Bozbey, Ali"]
[Black "Kamer, Kayra"]
[Result "1/2-1/2"]
[ECO "B23"]
[WhiteElo "2126"]
[BlackElo "2181"]
[Annotator "NA"]
[PlyCount "120"]
[EventDate "2018.07.25"]
[EventType "team-tourn"]
[EventCountry "TUR"]
[SourceTitle "playchess.com"]
[Source "ChessBase"]
[SourceQuality "1"]
[TimeControl "40/5400+30:1800+30"]

1. e4 c5 2. Nc3 b6 3. g3 Bb7 4. Bg2 g6 {[%emt 0:00:00]} 5. d3 {[%emt 0:16:30]} Bg7 {[%emt 0:00:00]} 6. Nge2 {[%emt 0:00:30]} e6 {[%emt 0:00:30]} 7. O-O {[%emt 0:00:30]} Ne7 {[%emt 0:00:30]} 8. Be3 {[%emt 0:00:30]} d5 {[%emt 0:00:30]} 9. exd5 {[%emt 0:00:30]} Nxd5 {[%emt 0:00:30]} 10. Nxd5 {[%emt 0:00:30]} Bxd5 {[%emt 0:00:30]} 11. Bxd5 {[%emt 0:00:30]} Qxd5 {[%emt 0:00:30]} 12. d4 {[%emt 0:00:30]} cxd4 {[%emt 0:00:30]} 13. Bxd4 {[%emt 0:00:30]} e5 {[%emt 0:00:30]} 14. Bc3 {[%emt 0:00:30]} Qc5 {[%emt 0:03:30]} 15. Nf4 {[%emt 0:06:30]} O-O {[%emt 0:00:30]} 16. Nd3 {[%emt 0:00:00]} Qc7 {[%emt 0:00:30]} 17. Re1 {[%emt 0:03:00]} Nc6 {[%emt 0:00:30]} 18. Qf3 {[%emt 0:10:30]} Rad8 {[%emt 0:00:30]} 19. Nb4 {[%emt 0:03:30]} Nd4 {[%emt 0:02:30]} 20. Bxd4 {[%emt 0:01:30]} Rxd4 {[%emt 0:00:30]} 21. c3 {[%emt 0:00:30]} Rd2 {[%emt 0:00:30]} 22. Re2 {[%emt 0:17:30]} Rfd8 {[%emt 0:00:30]} 23. Rae1 {[%emt 0:03:30]} f5 {[%emt 0:02:30]} 24. Qc6 {[%emt 0:04:30]} Qd6 {[%emt 0:05:30]} 25. Qxd6 {[%emt 0:07:30]} R2xd6 {[%emt 0:00:00]} 26. c4 {[%emt 0:01:30]} Rc8 {[%emt 0:01:00]} 27. b3 {[%emt 0:01:30]} Kf7 {[%emt 0:00:00]} 28. Rc1 {[%emt 0:03:59]} a5 {[%emt 0:01:00]} 29. Nc2 {[%emt 0:00:04]} h5 {[%emt 0:03:30]} 30. Ne3 {[%emt 0:05:14]} f4 {[%emt 0:00:00]} 31. Rd1 {[%emt 0:02:23]} Rxd1+ {[%emt 0:03:00]} 32. Nxd1 {[%emt 0:00:03]} Rd8 {[%emt 0:00:30]} 33. Nc3 {[%emt 0:02:10]} Rd3 {[%emt 0:00:30]} 34. Rc2 {[%emt 0:00:26]} f3 {[%emt 0:03:30]} 35. h4 {[%emt 0:00:36]} Bf8 {[%emt 0:03:30]} 36. Ne4 {[%emt 0:01:14]} Bb4 {[%emt 0:00:30]} 37. c5 {[%emt 0:05:57]} bxc5 {[%emt 0:00:30]} 38. Nxc5 {[%emt 0:00:00]} Rd1+ {[%emt 0:00:30]} 39. Kh2 {[%emt 0:00:00]} Bxc5 {[%emt 0:02:30]} 40. Rxc5 {[%emt 0:00:00]} Rf1 {[%emt 0:00:30]} 41. Rc2 {[%emt 0:01:54]} Kf6 {[%emt 0:00:30]} 42. a3 {[%emt 0:00:30]} Kf5 {[%emt 0:01:30]} 43. b4 {[%emt 0:00:30]} a4 {[%emt 0:00:30]} 44. Rb2 {[%emt 0:00:30]} Re1 {[%emt 0:02:30]} 45. b5 {[%emt 0:02:30]} Re2 {[%emt 0:00:30]} 46. Rb4 {[%emt 0:00:00]} Rxf2+ {[%emt 0:01:30]} 47. Kg1 {[%emt 0:00:00]} Rg2+ {[%emt 0:11:30]} 48. Kf1 {[%emt 0:00:30]} e4 {[%emt 0:05:30]} 49. b6 {[%emt 0:00:30]} g5 {[%emt 0:03:30]} 50. hxg5 {[%emt 0:01:30]} e3 {[%emt 0:07:30]} 51. Rf4+ {[%emt 0:00:30]} Kxg5 {[%emt 0:00:30]} 52. Rxf3 {[%emt 0:00:00]} Rb2 {[%emt 0:00:00]} 53. Rxe3 {[%emt 0:00:00]} Rxb6 {[%emt 0:00:00]} 54. Re4 {[%emt 0:00:30]} Rb3 {[%emt 0:00:30]} 55. Rxa4 {[%emt 0:00:30]} Rxg3 {[%emt 0:00:00]} 56. Kf2 {[%emt 0:00:00]} Rb3 {[%emt 0:00:00]} 57. Kg2 {[%emt 0:00:00]} h4 {[%emt 0:00:00]} 58. Kh2 {[%emt 0:00:00]} Rb2+ {[%emt 0:00:00]} 59. Kh3 {[%emt 0:00:00]} Rb3+ {[%emt 0:00:30]} 60. Kh2 {[%emt 0:00:30]} Rb2+ {[%emt 0:00:00]} 1/2-1/2

[Event "TUR-chT Superleague 2018"]
[Site "Ankara"]
[Date "2018.07.29"]
[Round "6"]
[White "Bolat, Ahmet"]
[Black "Kinsiz, Onur"]
[Result "0-1"]
[ECO "D01"]
[WhiteElo "2124"]
[BlackElo "2204"]
[Annotator "NA"]
[PlyCount "76"]
[EventDate "2018.07.25"]
[EventType "team-tourn"]
[EventCountry "TUR"]
[SourceTitle "playchess.com"]
[Source "ChessBase"]
[SourceQuality "1"]
[TimeControl "40/5400+30:1800+30"]

1. d4 {[%emt 0:02:30]} Nf6 {[%emt 0:17:00]} 2. Nc3 {[%emt 0:00:30]} d5 {[%emt 0:00:30]} 3. Bg5 {[%emt 0:00:30]} Nbd7 {[%emt 0:00:30]} 4. f3 {[%emt 0:00:30]} c6 {[%emt 0:00:30]} 5. Qd2 {[%emt 0:00:30]} h6 {[%emt 0:00:30]} 6. Bh4 {[%emt 0:00:30]} e5 {[%emt 0:01:30]} 7. e3 {[%emt 0:17:30]} Bd6 {[%emt 0:08:30]} 8. Bd3 {[%emt 0:01:30]} O-O {[%emt 0:08:30]} 9. Nge2 {[%emt 0:00:30]} Re8 {[%emt 0:03:30]} 10. O-O-O {[%emt 0:07:30]} b5 {[%emt 0:06:30]} 11. Ng3 {[%emt 0:04:30]} exd4 {[%emt 0:22:30]} 12. exd4 {[%emt 0:00:30]} Nf8 {[%emt 0:02:30]} 13. Nh5 {[%emt 0:05:30]} Be7 {[%emt 0:00:30]} 14. Nxf6+ {[%emt 0:04:30]} Bxf6 {[%emt 0:00:30]} 15. Bf2 {[%emt 0:05:30]} Qa5 {[%emt 0:02:30]} 16. Kb1 {[%emt 0:00:30]} b4 {[%emt 0:00:30]} 17. Ne2 {[%emt 0:00:30]} Ba6 {[%emt 0:00:30]} 18. Nc1 {[%emt 0:04:30]} Bc4 {[%emt 0:07:52]} 19. h4 {[%emt 0:08:30]} Ne6 {[%emt 0:02:59]} 20. Bf5 {[%emt 0:04:30]} Qc7 {[%emt 0:08:06]} 21. g4 {[%emt 0:01:30]} g6 {[%emt 0:01:10]} 22. Bxe6 {[%emt 0:10:38]} Rxe6 {[%emt 0:00:02]} 23. Be3 {[%emt 0:00:00]} Rae8 {[%emt 0:02:25]} 24. Bxh6 {[%emt 0:00:12]} Be2 {[%emt 0:00:29]} 25. Nxe2 {[%emt 0:04:35]} Rxe2 {[%emt 0:00:04]} 26. Qxb4 {[%emt 0:02:48]} Qg3 {[%emt 0:01:50]} 27. Qc3 {[%emt 0:00:51]} c5 {[%emt 0:01:20]} 28. Qxc5 {[%emt 0:00:29]} Qb8 {[%emt 0:00:39]} 29. Qxd5 {[%emt 0:01:06]} Qc7 {[%emt 0:00:31]} 30. Qc5 {[%emt 0:02:30]} Qb7 {[%emt 0:00:02]} 31. Qd6 {[%emt 0:06:02]} Be7 {[%emt 0:00:30]} 32. Qf4 {[%emt 0:01:11]} Ba3 {[%emt 0:00:08]} 33. b3 {[%emt 0:00:07]} Qc6 {[%emt 0:00:36]} 34. c4 {[%emt 0:01:26]} Rb2+ {[%emt 0:00:38]} 35. Ka1 {[%emt 0:00:30]} Ree2 {[%emt 0:00:00]} 36. Rd2 {[%emt 0:01:03]} Rbxd2 {[%emt 0:00:51]} 37. Qb8+ {[%emt 0:00:03]} Re8 {[%emt 0:00:58]} 38. Qxa7 {[%emt 0:00:55]} Qxf3 {[%emt 0:00:21]} 0-1

[Event "TUR-chT Superleague 2018"]
[Site "Ankara"]
[Date "2018.07.29"]
[Round "6"]
[White "Gulbeyaz, Emir"]
[Black "Uzumcu, Ahmet Utku"]
[Result "1-0"]
[ECO "B20"]
[WhiteElo "2074"]
[BlackElo "2261"]
[Annotator "NA"]
[PlyCount "127"]
[EventDate "2018.07.25"]
[EventType "team-tourn"]
[EventCountry "TUR"]
[SourceTitle "playchess.com"]
[Source "ChessBase"]
[SourceQuality "1"]
[TimeControl "40/5400+30:1800+30"]

1. e4 c5 2. b3 g6 3. Bb2 Nf6 4. e5 Nd5 5. Qf3 Nb4 6. Na3 Bg7 7. h4 N8c6 8. e6 f6 9. exd7+ Qxd7 10. h5 Qg4 11. O-O-O Qxf3 12. Nxf3 Bg4 13. h6 Bf8 14. Re1 e5 15. Rh4 Bf5 16. g4 g5 17. Rh3 Bxg4 18. Rg3 Bd7 19. c3 Nd5 20. Bc4 Nf4 21. d4 cxd4 22. cxd4 O-O-O 23. dxe5 g4 24. e6 gxf3 25. exd7+ Rxd7 26. Re8+ Rd8 27. Rxd8+ Nxd8 28. Rg7 Nfe6 29. Rf7 Bxh6+ 30. Kc2 Rf8 31. Rxh7 Bf4 32. Nb5 Kb8 33. Ba3 Re8 34. Nd6 Bxd6 35. Bxd6+ Kc8 36. Re7 Rxe7 37. Bxe7 f5 38. Kd3 Kd7 39. Bf6 Nf7 40. Ke3 Nfg5 41. Be5 Ne4 42. Bd5 N4c5 {[%emt 2:03:24]} 43. Bxf3 {[%emt 1:38:30]} a5 {[%emt 0:00:30]} 44. Bd1 {[%emt 0:00:30]} Kc6 {[%emt 0:00:30]} 45. f4 {[%emt 0:00:30]} Kd5 {[%emt 0:00:30]} 46. Be2 {[%emt 0:01:30]} Kc6 {[%emt 0:03:57]} 47. Bh5 {[%emt 0:00:30]} a4 {[%emt 0:02:08]} 48. b4 {[%emt 0:02:30]} Na6 {[%emt 0:03:23]} 49. Be8+ {[%emt 0:00:30]} Kd5 {[%emt 0:01:13]} 50. Bxa4 {[%emt 0:00:30]} Nd8 {[%emt 0:01:16]} 51. Bb3+ {[%emt 0:00:30]} Kc6 {[%emt 0:00:00]} 52. a3 {[%emt 0:00:30]} Kd7 {[%emt 0:00:41]} 53. Bf6 {[%emt 0:02:30]} Nc7 {[%emt 0:00:27]} 54. Bxd8 {[%emt 0:01:30]} Kxd8 {[%emt 0:00:01]} 55. Bc4 {[%emt 0:00:30]} Ke7 {[%emt 0:00:36]} 56. Kd4 {[%emt 0:01:30]} Kd6 {[%emt 0:00:30]} 57. a4 {[%emt 0:00:30]} Ne8 {[%emt 0:00:21]} 58. a5 {[%emt 0:00:30]} Nf6 {[%emt 0:00:48]} 59. b5 {[%emt 0:02:30]} Nh5 {[%emt 0:00:43]} 60. Bd5 {[%emt 0:03:30]} Nxf4 {[%emt 0:02:06]} 61. Bxb7 {[%emt 0:00:30]} Ne6+ {[%emt 0:01:23]} 62. Kc4 {[%emt 0:00:00]} Nc5 {[%emt 0:00:00]} 63. Bg2 {[%emt 0:01:00]} Nd7 {[%emt 0:00:24]} 64. b6 {[%emt 0:00:30]} 1-0

[Event "TUR-chT Superleague 2018"]
[Site "Ankara"]
[Date "2018.07.29"]
[Round "6"]
[White "Unat, Can Haktan"]
[Black "Tasdogen, Dincer"]
[Result "1/2-1/2"]
[ECO "B38"]
[WhiteElo "2047"]
[BlackElo "2280"]
[Annotator "NA"]
[PlyCount "97"]
[EventDate "2018.07.25"]
[EventType "team-tourn"]
[EventCountry "TUR"]
[SourceTitle "playchess.com"]
[Source "ChessBase"]
[SourceQuality "1"]
[TimeControl "40/5400+30:1800+30"]

1. e4 c5 2. Nf3 g6 3. d4 cxd4 4. Nxd4 Bg7 5. c4 Nc6 6. Be3 Nf6 7. Nc3 {[%emt 0:00:00]} d6 {[%emt 0:14:00]} 8. Be2 {[%emt 0:00:00]} O-O {[%emt 0:00:30]} 9. O-O {[%emt 0:00:00]} Nxd4 {[%emt 0:00:30]} 10. Bxd4 {[%emt 0:00:00]} Bd7 {[%emt 0:00:30]} 11. Qd2 {[%emt 0:00:30]} Bc6 {[%emt 0:00:30]} 12. f3 {[%emt 0:00:30]} a5 {[%emt 0:00:30]} 13. b3 {[%emt 0:00:30]} Nd7 {[%emt 0:00:30]} 14. Be3 {[%emt 0:00:30]} Nc5 {[%emt 0:00:30]} 15. Rab1 {[%emt 0:00:30]} e6 {[%emt 0:00:30]} 16. Rfd1 {[%emt 0:00:30]} Be5 {[%emt 0:00:30]} 17. g3 {[%emt 0:00:30]} Qe7 {[%emt 0:00:30]} 18. Nb5 {[%emt 0:00:30]} Rfd8 {[%emt 0:00:30]} 19. Nd4 {[%emt 0:00:30]} f5 {[%emt 0:00:30]} 20. Nxc6 {[%emt 0:07:30]} bxc6 {[%emt 0:00:30]} 21. Qc2 {[%emt 0:00:30]} fxe4 {[%emt 0:04:30]} 22. f4 {[%emt 0:00:00]} Bg7 {[%emt 0:05:30]} 23. Bxc5 {[%emt 0:00:00]} dxc5 {[%emt 0:00:30]} 24. Qxe4 {[%emt 0:00:30]} Bd4+ {[%emt 0:03:30]} 25. Kg2 {[%emt 0:00:00]} Rd6 {[%emt 0:01:30]} 26. Rd3 {[%emt 0:01:00]} Qf6 {[%emt 0:07:30]} 27. Rbd1 {[%emt 0:01:30]} Kg7 {[%emt 0:00:30]} 28. a3 {[%emt 0:03:30]} Rb8 {[%emt 0:02:30]} 29. Bf3 {[%emt 0:03:30]} Rb6 {[%emt 0:00:30]} 30. g4 {[%emt 0:02:30]} h6 {[%emt 0:04:30]} 31. h4 {[%emt 0:04:30]} Rb8 {[%emt 0:00:30]} 32. g5 {[%emt 0:07:30]} hxg5 {[%emt 0:05:30]} 33. hxg5 {[%emt 0:00:00]} Qf5 {[%emt 0:00:30]} 34. Re1 {[%emt 0:00:00]} Rf8 {[%emt 0:13:30]} 35. Qxf5 {[%emt 0:12:30]} Rxf5 {[%emt 0:00:30]} 36. Re4 {[%emt 0:00:30]} e5 {[%emt 0:02:30]} 37. Bg4 {[%emt 0:00:00]} Rxf4 {[%emt 0:02:30]} 38. Rxf4 {[%emt 0:00:00]} exf4 {[%emt 0:00:30]} 39. Kf3 {[%emt 0:00:30]} Rd8 {[%emt 0:02:30]} 40. Kxf4 {[%emt 0:00:00]} Be5+ {[%emt 0:04:30]} 41. Ke4 {[%emt 0:01:00]} Rxd3 {[%emt 0:00:30]} 42. Kxd3 {[%emt 0:00:30]} Bf4 {[%emt 0:00:30]} 43. Bd7 {[%emt 0:00:00]} Bxg5 {[%emt 0:00:30]} 44. Bxc6 {[%emt 0:00:00]} Bc1 {[%emt 0:00:00]} 45. a4 {[%emt 0:00:30]} Kf6 {[%emt 0:00:00]} 46. Ke4 {[%emt 0:00:30]} Kg5 {[%emt 0:00:00]} 47. Be8 {[%emt 0:00:30]} Ba3 {[%emt 0:00:00]} 48. Bf7 {[%emt 0:01:30]} Bb4 {[%emt 0:00:30]} 49. Be8 {[%emt 0:00:30]} 1/2-1/2